{"text_format":"2","workbook":"xlsx","n_sheets":6,"sheets":["i H3K27me3 NotDet GBM1","ii H3K27me3 NotDet GBM2","iii  H3K27me3 NotDet GBM1 paths","iv H3K27me3 NotDetec GBM1 nets","v H3K27me3 NotDetec GBM2 paths","vi H3K27me3 NotDetec GBM2 nets"],"not_rendered":{"charts":0,"images":0,"macros":0,"external_links":0,"defined_names":0,"comments":0,"pivot_tables":0},"unopened":[],"bounds":{"document_bytes":16777216,"sheet_cells":100000,"run_cost":"one","rows_first":2000,"rows_last":500,"rows_between":2000,"halvings":0,"cell_chars":16384,"cell_head_chars":4096},"cells_cut":0,"cells_raw":0,"read":"whole","date_system":"1900"}

{"sheet":"i H3K27me3 NotDet GBM1","index":0,"n_rows":103,"n_cols":3,"rows_kept":103,"cut":false,"hidden":false,"merged":[]}
["Genes enriched with H3K27me3 and FPKM ≤ 1 (by RNA-Seq) in baboon SVZ NSPC and > 2 fold increase in GBM1."]
["gene_symbol","stable_id","description"]
["AK2","ENSPANG00000023826","adenylate kinase 2 [Source:HGNC Symbol;Acc:HGNC:362]"]
["ANXA2R","ENSPANG00000016885","annexin A2 receptor [Source:HGNC Symbol;Acc:HGNC:33463]"]
["AR","ENSPANG00000020205","androgen receptor [Source:HGNC Symbol;Acc:HGNC:644]"]
["BARHL2","ENSPANG00000006243","BarH-like homeobox 2 [Source:HGNC Symbol;Acc:HGNC:954]"]
["CLDN23","ENSPANG00000006204","claudin 23 [Source:HGNC Symbol;Acc:HGNC:17591]"]
["CNPY1","ENSPANG00000008929","canopy FGF signaling regulator 1 [Source:HGNC Symbol;Acc:HGNC:27786]"]
["CR2","ENSPANG00000014170","complement component (3d/Epstein Barr virus) receptor 2 [Source:HGNC Symbol;Acc:HGNC:2336]"]
["DCAF4L1","ENSPANG00000013516","DDB1 and CUL4 associated factor 4-like 1 [Source:HGNC Symbol;Acc:HGNC:27723]"]
["DDI1","ENSPANG00000008172","DNA-damage inducible 1 homolog 1 (S. cerevisiae) [Source:HGNC Symbol;Acc:HGNC:18961]"]
["DMBX1","ENSPANG00000018121","diencephalon/mesencephalon homeobox 1 [Source:HGNC Symbol;Acc:HGNC:19026]"]
["DMRT1","ENSPANG00000025124","doublesex and mab-3 related transcription factor 1 [Source:HGNC Symbol;Acc:HGNC:2934]"]
["DMRT3","ENSPANG00000025123","doublesex and mab-3 related transcription factor 3 [Source:HGNC Symbol;Acc:HGNC:13909]"]
["DPPA3","ENSPANG00000007882","developmental pluripotency associated 3 [Source:HGNC Symbol;Acc:HGNC:19199]"]
["DUOXA2","ENSPANG00000017915","dual oxidase maturation factor 2 [Source:HGNC Symbol;Acc:HGNC:32698]"]
["EFHB","ENSPANG00000002796","EF-hand domain family, member B [Source:HGNC Symbol;Acc:HGNC:26330]"]
["EN1","ENSPANG00000006776","engrailed homeobox 1 [Source:HGNC Symbol;Acc:HGNC:3342]"]
["EOMES","ENSPANG00000011539","eomesodermin [Source:HGNC Symbol;Acc:HGNC:3372]"]
["FAM104B","ENSPANG00000010719","family with sequence similarity 104, member B [Source:HGNC Symbol;Acc:HGNC:25085]"]
["FAM3B","ENSPANG00000016346","family with sequence similarity 3, member B [Source:HGNC Symbol;Acc:HGNC:1253]"]
["FAM47C","ENSPANG00000006733","family with sequence similarity 47, member C [Source:HGNC Symbol;Acc:HGNC:25301]"]
["FGF16","ENSPANG00000002965","fibroblast growth factor 16 [Source:HGNC Symbol;Acc:HGNC:3672]"]
["FGF3","ENSPANG00000023335","fibroblast growth factor 3 [Source:HGNC Symbol;Acc:HGNC:3681]"]
["FOXA2","ENSPANG00000011847","forkhead box A2 [Source:HGNC Symbol;Acc:HGNC:5022]"]
["FOXB1","ENSPANG00000000869","forkhead box B1 [Source:HGNC Symbol;Acc:HGNC:3799]"]
["FOXD2","ENSPANG00000017227","forkhead box D2 [Source:HGNC Symbol;Acc:HGNC:3803]"]
["FOXD3","ENSPANG00000017676","forkhead box D3 [Source:HGNC Symbol;Acc:HGNC:3804]"]
["FSIP2","ENSPANG00000000578","fibrous sheath interacting protein 2 [Source:HGNC Symbol;Acc:HGNC:21675]"]
["GAB3","ENSPANG00000004006","GRB2-associated binding protein 3 [Source:HGNC Symbol;Acc:HGNC:17515]"]
["GATA3","ENSPANG00000023402","GATA binding protein 3 [Source:HGNC Symbol;Acc:HGNC:4172]"]
["GATA4","ENSPANG00000017468","GATA binding protein 4 [Source:HGNC Symbol;Acc:HGNC:4173]"]
["GDF6","ENSPANG00000000417","growth differentiation factor 6 [Source:HGNC Symbol;Acc:HGNC:4221]"]
["GJA5","ENSPANG00000014222","gap junction protein, alpha 5, 40kDa [Source:HGNC Symbol;Acc:HGNC:4279]"]
["GPR112","ENSPANG00000014919","G protein-coupled receptor 112 [Source:HGNC Symbol;Acc:HGNC:18992]"]
["GPR174","ENSPANG00000001913","G protein-coupled receptor 174 [Source:HGNC Symbol;Acc:HGNC:30245]"]
["GSX1","ENSPANG00000017129","GS homeobox 1 [Source:HGNC Symbol;Acc:HGNC:20374]"]
["HAND2","ENSPANG00000023378","heart and neural crest derivatives expressed 2 [Source:HGNC Symbol;Acc:HGNC:4808]"]
["HOXA10","ENSPANG00000021024","Papio anubis homeobox A10 (HOXA10), mRNA. [Source:RefSeq mRNA;Acc:NM_001169065]"]
["HOXA2","ENSPANG00000015067","Papio anubis homeobox A2 (HOXA2), mRNA. [Source:RefSeq mRNA;Acc:NM_001168895]"]
["HOXA3","ENSPANG00000025912","Papio anubis homeobox A3 (HOXA3), mRNA. [Source:RefSeq mRNA;Acc:NM_001169064]"]
["HOXA4","ENSPANG00000022298","Papio anubis homeobox A4 (HOXA4), mRNA. [Source:RefSeq mRNA;Acc:NM_001168896]"]
["HOXA5","ENSPANG00000009594","Papio anubis homeobox A5 (HOXA5), mRNA. [Source:RefSeq mRNA;Acc:NM_001168897]"]
["HOXC12","ENSPANG00000010379","homeobox C12 [Source:HGNC Symbol;Acc:HGNC:5124]"]
["HOXC13","ENSPANG00000002383","homeobox C13 [Source:HGNC Symbol;Acc:HGNC:5125]"]
["HOXC4","ENSPANG00000010688","homeobox C4 [Source:HGNC Symbol;Acc:HGNC:5126]"]
["HOXC6","ENSPANG00000018054","homeobox C6 [Source:HGNC Symbol;Acc:HGNC:5128]"]
["HOXC8","ENSPANG00000003389","homeobox C8 [Source:HGNC Symbol;Acc:HGNC:5129]"]
["HOXC9","ENSPANG00000014167","homeobox C9 [Source:HGNC Symbol;Acc:HGNC:5130]"]
["HOXD3","ENSPANG00000000543","homeobox D3 [Source:HGNC Symbol;Acc:HGNC:5137]"]
["HOXD9","ENSPANG00000001061","homeobox D9 [Source:HGNC Symbol;Acc:HGNC:5140]"]
["LBX1","ENSPANG00000021064","ladybird homeobox 1 [Source:HGNC Symbol;Acc:HGNC:16960]"]
["MNX1","ENSPANG00000023831","motor neuron and pancreas homeobox 1 [Source:HGNC Symbol;Acc:HGNC:4979]"]
["MS4A3","ENSPANG00000010801","membrane-spanning 4-domains, subfamily A, member 3 (hematopoietic cell-specific) [Source:HGNC Symbol;Acc:HGNC:7317]"]
["MURC","ENSPANG00000025679","muscle-related coiled-coil protein [Source:HGNC Symbol;Acc:HGNC:33742]"]
["NEUROG2","ENSPANG00000004407","neurogenin 2 [Source:HGNC Symbol;Acc:HGNC:13805]"]
["NKX2-3","ENSPANG00000021255","NK2 homeobox 3 [Source:HGNC Symbol;Acc:HGNC:7836]"]
["NKX2-4","ENSPANG00000014236","NK2 homeobox 4 [Source:HGNC Symbol;Acc:HGNC:7837]"]
["NKX2-5","ENSPANG00000012362","NK2 homeobox 5 [Source:HGNC Symbol;Acc:HGNC:2488]"]
["NKX2-6","ENSPANG00000019014","NK2 homeobox 6 [Source:HGNC Symbol;Acc:HGNC:32940]"]
["NKX3-2","ENSPANG00000021310","NK3 homeobox 2 [Source:HGNC Symbol;Acc:HGNC:951]"]
["ONECUT1","ENSPANG00000017410","one cut homeobox 1 [Source:HGNC Symbol;Acc:HGNC:8138]"]
["OR52N1","ENSPANG00000019169","Papio anubis olfactory receptor, family 52, subfamily N, member 1 (OR52N1), mRNA. [Source:RefSeq mRNA;Acc:NM_001168868]"]
["OR6C2","ENSPANG00000014186","olfactory receptor, family 6, subfamily C, member 2 [Source:HGNC Symbol;Acc:HGNC:15436]"]
["OSR2","ENSPANG00000012764","odd-skipped related transciption factor 2 [Source:HGNC Symbol;Acc:HGNC:15830]"]
["OTP","ENSPANG00000009550","orthopedia homeobox [Source:HGNC Symbol;Acc:HGNC:8518]"]
["PAX2","ENSPANG00000021132","paired box 2 [Source:HGNC Symbol;Acc:HGNC:8616]"]
["PAX5","ENSPANG00000025475","paired box 5 [Source:HGNC Symbol;Acc:HGNC:8619]"]
["PAX9","ENSPANG00000000932","Paired box 9  [Source:UniProtKB/TrEMBL;Acc:Q2VL44]"]
["PDX1","ENSPANG00000012683","pancreatic and duodenal homeobox 1 [Source:HGNC Symbol;Acc:HGNC:6107]"]
["PITX1","ENSPANG00000003081","paired-like homeodomain 1 [Source:HGNC Symbol;Acc:HGNC:9004]"]
["POM121L2","ENSPANG00000009597","POM121 transmembrane nucleoporin-like 2 [Source:HGNC Symbol;Acc:HGNC:13973]"]
["POU2F3","ENSPANG00000005039","POU class 2 homeobox 3 [Source:HGNC Symbol;Acc:HGNC:19864]"]
["POU4F1","ENSPANG00000018120","POU class 4 homeobox 1 [Source:HGNC Symbol;Acc:HGNC:9218]"]
["POU4F2","ENSPANG00000006551","POU class 4 homeobox 2 [Source:HGNC Symbol;Acc:HGNC:9219]"]
["PRDM13","ENSPANG00000017638","PR domain containing 13 [Source:HGNC Symbol;Acc:HGNC:13998]"]
["PRDX4","ENSPANG00000007586","peroxiredoxin 4 [Source:HGNC Symbol;Acc:HGNC:17169]"]
["PRSS16","ENSPANG00000018081","protease, serine, 16 (thymus) [Source:HGNC Symbol;Acc:HGNC:9480]"]
["PTHLH","ENSPANG00000013654","parathyroid hormone-like hormone [Source:HGNC Symbol;Acc:HGNC:9607]"]
["QRFPR","ENSPANG00000008819","pyroglutamylated RFamide peptide receptor [Source:HGNC Symbol;Acc:HGNC:15565]"]
["RBL1","ENSPANG00000024273","retinoblastoma-like 1 [Source:HGNC Symbol;Acc:HGNC:9893]"]
["RFX6","ENSPANG00000008240","regulatory factor X, 6 [Source:HGNC Symbol;Acc:HGNC:21478]"]
["RHOU","ENSPANG00000002244","ras homolog family member U [Source:HGNC Symbol;Acc:HGNC:17794]"]
["RIPK4","ENSPANG00000022205","receptor-interacting serine-threonine kinase 4 [Source:HGNC Symbol;Acc:HGNC:496]"]
["SCML2","ENSPANG00000018991","sex comb on midleg-like 2 (Drosophila) [Source:HGNC Symbol;Acc:HGNC:10581]"]
["SHOX2","ENSPANG00000008663","short stature homeobox 2 [Source:HGNC Symbol;Acc:HGNC:10854]"]
["SIM1","ENSPANG00000011218","single-minded family bHLH transcription factor 1 [Source:HGNC Symbol;Acc:HGNC:10882]"]
["SIX4","ENSPANG00000020970","SIX homeobox 4 [Source:HGNC Symbol;Acc:HGNC:10890]"]
["SLC6A5","ENSPANG00000021902","solute carrier family 6 (neurotransmitter transporter), member 5 [Source:HGNC Symbol;Acc:HGNC:11051]"]
["SPO11","ENSPANG00000024503","SPO11 meiotic protein covalently bound to DSB [Source:HGNC Symbol;Acc:HGNC:11250]"]
["TBX20","ENSPANG00000007074","T-box 20 [Source:HGNC Symbol;Acc:HGNC:11598]"]
["TBX5","ENSPANG00000016891","T-box 5 [Source:HGNC Symbol;Acc:HGNC:11604]"]
["TCF21","ENSPANG00000022301","transcription factor 21 [Source:HGNC Symbol;Acc:HGNC:11632]"]
["TFAP2A","ENSPANG00000022354","transcription factor AP-2 alpha (activating enhancer binding protein 2 alpha) [Source:HGNC Symbol;Acc:HGNC:11742]"]
["TFAP2B","ENSPANG00000026000","transcription factor AP-2 beta (activating enhancer binding protein 2 beta) [Source:HGNC Symbol;Acc:HGNC:11743]"]
["TFAP2D","ENSPANG00000017493","transcription factor AP-2 delta (activating enhancer binding protein 2 delta) [Source:HGNC Symbol;Acc:HGNC:15581]"]
["TLX3","ENSPANG00000000216","T-cell leukemia homeobox 3 [Source:HGNC Symbol;Acc:HGNC:13532]"]
["TMEM209","ENSPANG00000021722","transmembrane protein 209 [Source:HGNC Symbol;Acc:HGNC:21898]"]
["TPRG1","ENSPANG00000004350","tumor protein p63 regulated 1 [Source:HGNC Symbol;Acc:HGNC:24759]"]
["TSPEAR","ENSPANG00000006409","thrombospondin-type laminin G domain and EAR repeats [Source:HGNC Symbol;Acc:HGNC:1268]"]
["VGLL2","ENSPANG00000016788","vestigial-like family member 2 [Source:HGNC Symbol;Acc:HGNC:20232]"]
["ZIC3","ENSPANG00000011357","Zic family member 3 [Source:HGNC Symbol;Acc:HGNC:12874]"]
["ZIC4","ENSPANG00000024745","Zic family member 4 [Source:HGNC Symbol;Acc:HGNC:20393]"]

{"sheet":"ii H3K27me3 NotDet GBM2","index":1,"n_rows":66,"n_cols":3,"rows_kept":66,"cut":false,"hidden":false,"merged":[]}
["Genes enriched with H3K27me3 and FPKM ≤ 1 (by RNA-Seq) in baboon SVZ NSPC and > 2 fold increase in GBM2."]
["gene_symbol","stable_id","description"]
["AK2","ENSPANG00000023826","adenylate kinase 2 [Source:HGNC Symbol;Acc:HGNC:362]"]
["ANXA2R","ENSPANG00000016885","annexin A2 receptor [Source:HGNC Symbol;Acc:HGNC:33463]"]
["AR","ENSPANG00000020205","androgen receptor [Source:HGNC Symbol;Acc:HGNC:644]"]
["BARHL2","ENSPANG00000006243","BarH-like homeobox 2 [Source:HGNC Symbol;Acc:HGNC:954]"]
["BUD13","ENSPANG00000014015","Papio anubis BUD13 homolog (S. cerevisiae) (BUD13), mRNA. [Source:RefSeq mRNA;Acc:NM_001168766]"]
["C1orf53","ENSPANG00000025040","chromosome 1 open reading frame 53 [Source:HGNC Symbol;Acc:HGNC:30003]"]
["CA2","ENSPANG00000017180","carbonic anhydrase II [Source:HGNC Symbol;Acc:HGNC:1373]"]
["CNPY1","ENSPANG00000008929","canopy FGF signaling regulator 1 [Source:HGNC Symbol;Acc:HGNC:27786]"]
["DMRT1","ENSPANG00000025124","doublesex and mab-3 related transcription factor 1 [Source:HGNC Symbol;Acc:HGNC:2934]"]
["EN1","ENSPANG00000006776","engrailed homeobox 1 [Source:HGNC Symbol;Acc:HGNC:3342]"]
["EOMES","ENSPANG00000011539","eomesodermin [Source:HGNC Symbol;Acc:HGNC:3372]"]
["EPB41L4A","ENSPANG00000007935","erythrocyte membrane protein band 4.1 like 4A [Source:HGNC Symbol;Acc:HGNC:13278]"]
["FAM104B","ENSPANG00000010719","family with sequence similarity 104, member B [Source:HGNC Symbol;Acc:HGNC:25085]"]
["FOXD2","ENSPANG00000017227","forkhead box D2 [Source:HGNC Symbol;Acc:HGNC:3803]"]
["FOXD3","ENSPANG00000017676","forkhead box D3 [Source:HGNC Symbol;Acc:HGNC:3804]"]
["FOXL2","ENSPANG00000005824","forkhead box L2 [Source:HGNC Symbol;Acc:HGNC:1092]"]
["FSIP2","ENSPANG00000000578","fibrous sheath interacting protein 2 [Source:HGNC Symbol;Acc:HGNC:21675]"]
["GAB3","ENSPANG00000004006","GRB2-associated binding protein 3 [Source:HGNC Symbol;Acc:HGNC:17515]"]
["GATA3","ENSPANG00000023402","GATA binding protein 3 [Source:HGNC Symbol;Acc:HGNC:4172]"]
["GATA4","ENSPANG00000017468","GATA binding protein 4 [Source:HGNC Symbol;Acc:HGNC:4173]"]
["GGH","ENSPANG00000000687","gamma-glutamyl hydrolase (conjugase, folylpolygammaglutamyl hydrolase) [Source:HGNC Symbol;Acc:HGNC:4248]"]
["GPR174","ENSPANG00000001913","G protein-coupled receptor 174 [Source:HGNC Symbol;Acc:HGNC:30245]"]
["GSX1","ENSPANG00000017129","GS homeobox 1 [Source:HGNC Symbol;Acc:HGNC:20374]"]
["HAND2","ENSPANG00000023378","heart and neural crest derivatives expressed 2 [Source:HGNC Symbol;Acc:HGNC:4808]"]
["HEATR2","ENSPANG00000018764","HEAT repeat containing 2 [Source:HGNC Symbol;Acc:HGNC:26013]"]
["HMGB2","ENSPANG00000007527","high mobility group box 2 [Source:HGNC Symbol;Acc:HGNC:5000]"]
["HOXA4","ENSPANG00000022298","Papio anubis homeobox A4 (HOXA4), mRNA. [Source:RefSeq mRNA;Acc:NM_001168896]"]
["HOXC13","ENSPANG00000002383","homeobox C13 [Source:HGNC Symbol;Acc:HGNC:5125]"]
["HOXC4","ENSPANG00000010688","homeobox C4 [Source:HGNC Symbol;Acc:HGNC:5126]"]
["HOXC6","ENSPANG00000018054","homeobox C6 [Source:HGNC Symbol;Acc:HGNC:5128]"]
["HOXC8","ENSPANG00000003389","homeobox C8 [Source:HGNC Symbol;Acc:HGNC:5129]"]
["HOXC9","ENSPANG00000014167","homeobox C9 [Source:HGNC Symbol;Acc:HGNC:5130]"]
["HOXD3","ENSPANG00000000543","homeobox D3 [Source:HGNC Symbol;Acc:HGNC:5137]"]
["HOXD9","ENSPANG00000001061","homeobox D9 [Source:HGNC Symbol;Acc:HGNC:5140]"]
["KAL1","ENSPANG00000020427","Kallmann syndrome 1 sequence [Source:HGNC Symbol;Acc:HGNC:6211]"]
["MNX1","ENSPANG00000023831","motor neuron and pancreas homeobox 1 [Source:HGNC Symbol;Acc:HGNC:4979]"]
["MOSPD1","ENSPANG00000014778","motile sperm domain containing 1 [Source:HGNC Symbol;Acc:HGNC:25235]"]
["NKX2-5","ENSPANG00000012362","NK2 homeobox 5 [Source:HGNC Symbol;Acc:HGNC:2488]"]
["NKX3-2","ENSPANG00000021310","NK3 homeobox 2 [Source:HGNC Symbol;Acc:HGNC:951]"]
["OLFML2B","ENSPANG00000013118","olfactomedin-like 2B [Source:HGNC Symbol;Acc:HGNC:24558]"]
["ONECUT1","ENSPANG00000017410","one cut homeobox 1 [Source:HGNC Symbol;Acc:HGNC:8138]"]
["OSR2","ENSPANG00000012764","odd-skipped related transciption factor 2 [Source:HGNC Symbol;Acc:HGNC:15830]"]
["OTP","ENSPANG00000009550","orthopedia homeobox [Source:HGNC Symbol;Acc:HGNC:8518]"]
["PITX1","ENSPANG00000003081","paired-like homeodomain 1 [Source:HGNC Symbol;Acc:HGNC:9004]"]
["POU4F1","ENSPANG00000018120","POU class 4 homeobox 1 [Source:HGNC Symbol;Acc:HGNC:9218]"]
["PRDX4","ENSPANG00000007586","peroxiredoxin 4 [Source:HGNC Symbol;Acc:HGNC:17169]"]
["RBL1","ENSPANG00000024273","retinoblastoma-like 1 [Source:HGNC Symbol;Acc:HGNC:9893]"]
["RHOU","ENSPANG00000002244","ras homolog family member U [Source:HGNC Symbol;Acc:HGNC:17794]"]
["RXRG","ENSPANG00000008314","retinoid X receptor, gamma [Source:HGNC Symbol;Acc:HGNC:10479]"]
["SCML2","ENSPANG00000018991","sex comb on midleg-like 2 (Drosophila) [Source:HGNC Symbol;Acc:HGNC:10581]"]
["SHOX2","ENSPANG00000008663","short stature homeobox 2 [Source:HGNC Symbol;Acc:HGNC:10854]"]
["SIM2","ENSPANG00000020491","single-minded family bHLH transcription factor 2 [Source:HGNC Symbol;Acc:HGNC:10883]"]
["TFAP2A","ENSPANG00000022354","transcription factor AP-2 alpha (activating enhancer binding protein 2 alpha) [Source:HGNC Symbol;Acc:HGNC:11742]"]
["TFAP2B","ENSPANG00000026000","transcription factor AP-2 beta (activating enhancer binding protein 2 beta) [Source:HGNC Symbol;Acc:HGNC:11743]"]
["THSD7A","ENSPANG00000006922","thrombospondin, type I, domain containing 7A [Source:HGNC Symbol;Acc:HGNC:22207]"]
["TMEM209","ENSPANG00000021722","transmembrane protein 209 [Source:HGNC Symbol;Acc:HGNC:21898]"]
["TPRG1","ENSPANG00000004350","tumor protein p63 regulated 1 [Source:HGNC Symbol;Acc:HGNC:24759]"]
["VGLL2","ENSPANG00000016788","vestigial-like family member 2 [Source:HGNC Symbol;Acc:HGNC:20232]"]
["WARS2","ENSPANG00000011381","tryptophanyl tRNA synthetase 2, mitochondrial [Source:HGNC Symbol;Acc:HGNC:12730]"]
["ZC4H2","ENSPANG00000013981","zinc finger, C4H2 domain containing [Source:HGNC Symbol;Acc:HGNC:24931]"]
["ZIC1","ENSPANG00000005804","Zic family member 1 [Source:HGNC Symbol;Acc:HGNC:12872]"]
["ZIC4","ENSPANG00000024745","Zic family member 4 [Source:HGNC Symbol;Acc:HGNC:20393]"]
["ZNF322","ENSPANG00000016590","zinc finger protein 322 [Source:HGNC Symbol;Acc:HGNC:23640]"]
["ZNF594","ENSPANG00000025771","zinc finger protein 594 [Source:HGNC Symbol;Acc:HGNC:29392]"]

{"sheet":"iii  H3K27me3 NotDet GBM1 paths","index":2,"n_rows":10,"n_cols":5,"rows_kept":10,"cut":false,"hidden":false,"merged":[]}
["IPA predicted canonical pathways for genes enriched with H3K27me3 and FPKM ≤ 1 (by RNA-Seq) in baboon SVZ NSPC and > 2 fold increase in GBM1."]
["Canonical Pathways for My Projects->BVH3K27m3H4K20m3Symb->pa27_NotDetec_GBM1_ipa_import - 2015-06-08 03:27 PM"]
["Ingenuity Canonical Pathways","-log(p-value)","p-value","Ratio","Molecules"]
["Transcriptional Regulatory Network in Embryonic Stem Cells",5.85,{"$f":"10^-B4","v":1.4125375446227531E-6},0.125,"ZIC3,EOMES,FOXD3,ONECUT1,GATA4"]
["Embryonic Stem Cell Differentiation into Cardiac Lineages",2.99,{"$f":"10^-B5","v":1.0232929922807533E-3},0.2,"NKX2-5,GATA4"]
["Cardiomyocyte Differentiation via BMP Receptors",2.38,4.1686938347033527E-3,0.1,"NKX2-5,GATA4"]
["Maturity Onset Diabetes of Young (MODY) Signaling",2.29,5.1286138399136471E-3,9.0899999999999995E-2,"FOXA2,PDX1"]
["Factors Promoting Cardiogenesis in Vertebrates",1.99,1.0232929922807535E-2,3.2599999999999997E-2,"TBX5,NKX2-5,GATA4"]
["Role of Oct4 in Mammalian Embryonic Stem Cell Pluripotency",1.67,2.1379620895022322E-2,4.3499999999999997E-2,"FOXA2,FOXD3"]
["Cardiac Hypertrophy Signaling",1.63,2.3442288153199219E-2,1.7899999999999999E-2,"NKX2-5,HAND2,RHOU,GATA4"]

{"sheet":"iv H3K27me3 NotDetec GBM1 nets","index":3,"n_rows":8,"n_cols":7,"rows_kept":8,"cut":false,"hidden":false,"merged":[]}
["IPA predicted networks for genes enriched with H3K27me3 and FPKM ≤ 1 (by RNA-Seq) in baboon SVZ NSPC and > 2 fold increase in GBM1."]
["Networks for My Projects->BVH3K27m3H4K20m3Symb->pa27_NotDetec_GBM1_ipa_import - 2015-06-08 03:27 PM"]
["ID","Molecules in Network","Input Molecules","Score","Focus Molecules","p-value","Top Diseases and Functions"]
[1,"Alpha Actinin,BARHL2,DMRT1,DMRT3,EN1,ERK1/2,FGF16,FGF3,FOXA2,FOXD3,Fgf,GATA4,GJA5,HAND2,HOXA2,HOXA5,HOXC13,HOXC4,HOXC8,HOXC9,HOXD9,Hedgehog,NEUROG2,NKX2-5,NKX2-6,POU4F1,POU4F2,SHOX2,TBX20,TBX5,TFAP2B,TIP60,Tropomyosin,Wnt,ZIC3","BARHL2,DMRT1,DMRT3,EN1,FGF16,FGF3,FOXA2,FOXD3,GATA4,GJA5,HAND2,HOXA2,HOXA5,HOXC13,HOXC4,HOXC8,HOXC9,HOXD9,NEUROG2,NKX2-5,NKX2-6,POU4F1,POU4F2,SHOX2,TBX20,TBX5,TFAP2B,ZIC3",66,28,{"$f":"10^-(D4)","v":1.0000000000000001E-66},"Gene Expression, Embryonic Development, Organismal Development"]
[2,"AR,Akt,Alp,CD3,CLDN23,CR2,Cyclin E,EOMES,FAM3B,GATA3,GDF6,Hdac,Hsp27,IgG1,Immunoglobulin,Interferon alpha,Mek,NKX2-3,PAX2,PAX5,PITX1,PRDX4,PTHLH,RBL1,RFX6,Rb,SPO11,TCF21,TFAP2A,TFAP2D,TLX3,Tgf beta,caspase,estrogen receptor,thymidine kinase","AR,CLDN23,CR2,EOMES,FAM3B,GATA3,GDF6,NKX2-3,PAX2,PAX5,PITX1,PRDX4,PTHLH,RBL1,RFX6,SPO11,TCF21,TFAP2A,TFAP2D,TLX3",42,20,9.9999999999999988E-43,"Embryonic Development, Organismal Development, Gene Expression"]
[3,"ANXA2R,BRCA1,CDK2,COPS5,DCAF4L1,DUOXA2,ELAVL1,FAM104B,FOXB1,FSIP2,GAB3,GALNT4,GSX1,H2-K2/H2-Q9,HOXA3,HOXA4,HOXC12,HOXD3,IFNG,IRF9,KDM5B,MS4A3,NEDD8,NKX2-4,NR3C1,NTRK2,PRDM13,Rpl29 (includes others),SIM1,SMAD3,SRC,VGLL2,ZDHHC14,hydrogen peroxide,tretinoin","ANXA2R,DCAF4L1,DUOXA2,FAM104B,FOXB1,FSIP2,GAB3,GSX1,HOXA3,HOXA4,HOXC12,HOXD3,MS4A3,NKX2-4,PRDM13,SIM1,VGLL2",34,17,1.0000000000000001E-34,"Organismal Development, Organismal Survival, Cell Cycle"]
[4,"AICDA,AK2,AK3,CHST7,DDI1,DDX4,DMBX1,DPPA3,DPYSL5,EPHB4,FAM49A,FOXD2,GPR125,GPR64,HIST1H3I,HOXC4,HOXC6,KMT2D,LOXL1,MURC,OTP,PLXDC1,POU5F1,PRSS16,SCML2,SIX4,SLC44A1,SLC6A5,SMO,TFAP2D,TMEM209,UBC,ZIC4,ZNF536,ZNF598","AK2,DDI1,DMBX1,DPPA3,FOXD2,HOXC4,HOXC6,MURC,OTP,PRSS16,SCML2,SIX4,SLC6A5,TFAP2D,TMEM209,ZIC4",31,16,1.0000000000000001E-31,"Nucleic Acid Metabolism, Small Molecule Biochemistry, Cellular Movement"]
[5,"Ck2,ERK,GPR112,GPR125,GPR151,GPR174,GPR182,Gpcr,Growth hormone,HOXA10,Histone h3,Ikb,Insulin,Jnk,LBX1,MNX1,Mapk,NFkB (complex),NKX3-2,NMBR,ONECUT1,OSR2,P38 MAPK,PAX9,PCDHA12,PDX1,PI3K (complex),POU2F3,Pka,Pkc(s),QRFPR,RHOU,RIPK4,SSTR4,Vegf","GPR112,GPR174,HOXA10,LBX1,MNX1,NKX3-2,ONECUT1,OSR2,PAX9,PDX1,POU2F3,QRFPR,RHOU,RIPK4",26,14,9.999999999999999E-27,"Digestive System Development and Function, Embryonic Development, Endocrine System Development and Function"]

{"sheet":"v H3K27me3 NotDetec GBM2 paths","index":4,"n_rows":13,"n_cols":5,"rows_kept":13,"cut":false,"hidden":false,"merged":[]}
["IPA predicted canonical pathways for genes enriched with H3K27me3 and FPKM ≤ 1 (by RNA-Seq) in baboon SVZ NSPC and > 2 fold increase in GBM2."]
["Canonical Pathways for My Projects->BVH3K27m3H4K20m3Symb->pa27_NotDetec_GBM2_ipa_import - 2015-06-08 03:28 PM"]
["Ingenuity Canonical Pathways","-log(p-value)","p-value","Ratio","Molecules"]
["Transcriptional Regulatory Network in Embryonic Stem Cells",5.15,{"$f":"10^-B4","v":7.0794578438413623E-6},0.1,"EOMES,FOXD3,ONECUT1,GATA4"]
["Embryonic Stem Cell Differentiation into Cardiac Lineages",3.38,4.1686938347033518E-4,0.2,"NKX2-5,GATA4"]
["Cardiomyocyte Differentiation via BMP Receptors",2.76,1.737800828749375E-3,0.1,"NKX2-5,GATA4"]
["Glutamate Removal from Folates",2.5099999999999998,3.0902954325135908E-3,1,"GGH,"]
["Cardiac Hypertrophy Signaling",2.29,5.1286138399136471E-3,1.7899999999999999E-2,"NKX2-5,HAND2,RHOU,GATA4"]
["Thrombin Signaling",1.67,2.1379620895022322E-2,1.5699999999999999E-2,"RHOU,GATA3,GATA4"]
["BMP signaling pathway",1.63,2.3442288153199219E-2,2.63E-2,"NKX2-5,HOXC9"]
["TGF-β Signaling",1.52,3.0199517204020147E-2,2.3E-2,"NKX2-5,HOXC9"]
["Factors Promoting Cardiogenesis in Vertebrates",1.48,3.3113112148259106E-2,2.1700000000000001E-2,"NKX2-5,GATA4"]
["Role of NANOG in Mammalian Embryonic Stem Cell Pluripotency",1.33,4.6773514128719787E-2,1.7999999999999999E-2,"FOXD3,GATA4"]

{"sheet":"vi H3K27me3 NotDetec GBM2 nets","index":5,"n_rows":7,"n_cols":7,"rows_kept":7,"cut":false,"hidden":false,"merged":[]}
["IPA predicted networks for genes enriched with H3K27me3 and FPKM ≤ 1 (by RNA-Seq) in baboon SVZ NSPC and > 2 fold increase in GBM1."]
["Networks for My Projects->BVH3K27m3H4K20m3Symb->pa27_NotDetec_GBM2_ipa_import - 2015-06-08 03:28 PM"]
["ID","Molecules in Network","Input Molecules","Score","Focus Molecules","p-value","Top Diseases and Functions"]
[1,"AR,Akt,CD3,DMRT1,EOMES,FOXD3,FOXL2,FSH,GATA3,GATA4,HAND2,HMGB2,HOXC13,HOXC4,HOXC8,HOXC9,HOXD9,Hdac,Mek,NKX2-5,ONECUT1,OSR2,PITX1,POU4F1,PRDX4,RBL1,SHOX2,SIM2,TFAP2A,TFAP2B,Tgf beta,Wnt,caspase,estrogen receptor,thymidine kinase","AR,DMRT1,EOMES,FOXD3,FOXL2,GATA3,GATA4,HAND2,HMGB2,HOXC13,HOXC4,HOXC8,HOXC9,HOXD9,NKX2-5,ONECUT1,OSR2,PITX1,POU4F1,PRDX4,RBL1,SHOX2,SIM2,TFAP2A,TFAP2B",62,25,{"$f":"10^-(D4)","v":1E-62},"Gene Expression, Embryonic Development, Organismal Development"]
[2,"AGPAT5,ALDH16A1,ANXA2R,APOE,BUD13,DNAAF5,ELAVL1,EPHB4,FAM104B,FAM49A,FOXD2,FSIP2,GGH,HOXA4,HOXC6,HOXD3,IFNG,IFT74,MOSPD1,NEDD8,NKX3-2,PLXDC1,RXRG,SCML2,SERPINE1,SLC44A1,SUZ12,TM2D1,TMEM209,UBC,WARS2,YPEL5,ZIC1,ZIC4,ZNF594","ANXA2R,BUD13,DNAAF5,FAM104B,FOXD2,FSIP2,GGH,HOXA4,HOXC6,HOXD3,MOSPD1,NKX3-2,RXRG,SCML2,TMEM209,WARS2,ZIC1,ZIC4,ZNF594",43,19,{"$f":"10^-(D5)","v":1.0000000000000001E-43},"Connective Tissue Development and Function, Nervous System Development and Function, Organ Morphology"]
[3,"ABL1,AK2,Androgen-AR,C8orf4,CA2,ERK,GAB3,GHRH,GPR125,GPR151,GPR174,GPR182,GSX1,Gpcr,Histone h3,Jnk,NFkB (complex),NR3C1,OLFML2B,P38 MAPK,PIK3R1,PSMC3IP,Pka,Pkc(s),RHOU,RXFP3,S1PR3,THSD7A,TNF,TNFAIP8,VGLL2,Vegf,ZC4H2,butyric acid,estriol","AK2,CA2,GAB3,GPR174,GSX1,OLFML2B,RHOU,THSD7A,VGLL2,ZC4H2",19,10,9.9999999999999998E-20,"Infectious Disease, Hematological System Development and Function, Hypersensitivity Response"]
[4,"ALDOC,APP,ASS1,ATP1A3,BARHL2,BMF,BMP,CGB (includes others),DGCR6/LOC102724770,EN1,EPB41L4A,EPHB4,ETV5,FGF16,FGF2,GREM1,HABP2,HOXB7,HSPB7,KAL1,MEOX1,MIF,MNX1,NEUROG3,OTP,OTX2,PAX3,PLCB4,PLK2,PTGER3,PTK6,RBL1,REL,SEPT7,ZNF322","BARHL2,EN1,EPB41L4A,KAL1,MNX1,OTP,RBL1,ZNF322",14,8,1E-14,"Cell-To-Cell Signaling and Interaction, Nervous System Development and Function, Cellular Development"]